Cogmind - Beta 16 @@@ ROGUE MODE // 2025.11.14 @ 18:21:39 Player: Lazz Result: Destroyed by X-77 Beamer with Gatling Laser Performance ------------- Evolutions (5) 2500 Regions Visited (7) 1400 Robots Destroyed (55) 275 Value Destroyed (1931) 1931 Prototype IDs (1) 20 Alien Tech Used (0) 0 Bonus (0) 0 TOTAL SCORE: 6126 Bonus ------- None Cogmind --------- Core Integrity 0/1000 Matter 72/300 Energy 43/100 System Corruption 9% Temperature Cool (30) Movement Core (50) Location -5/Factory Parts ------- > --- POWER (2) -------- (None) > --- PROPULSION (4) --- (None) > --- UTILITY (8) ------ System Shield > --- WEAPON (3) ------- (None) > --- INVENTORY (5) ---- Micro Fission Core Large Storage Unit Wave Gun Greatsword Peak State ------------ > --- POWER ------------ Deuterium Engine Improved Deuterium Engine > --- PROPULSION ------- Improved Treads Improved Treads Armored Treads Medium Treads > --- UTILITY ---------- Improved Cryofiber Web Improved Heat Sink Advanced Heat Sink Large Storage Unit Advanced Weight Redist. System Recoil Stabilizer Improved Weapon Cycler Utility Shielding > --- WEAPON ----------- Plasma Cannon Flak Gun Heavy Flak Cannon > --- INVENTORY -------- Hybrid Deuterium Engine Micro Fission Core Medium Treads Large Storage Unit System Restoration Module Arc Projector Tesla Rifle Wave Gun EM Pulse Cannon Gauss Rifle Improved Proton Missile Launcher Greatsword [Rating: 63] Favorites ----------- Power Improved Ion Engine Engine Improved Ion Engine Propulsion Improved Treads Treads Improved Treads Leg Aluminum Leg Utility Improved Heat Sink Device Improved Heat Sink Storage Large Storage Unit Hackware System Shield Protection Utility Shielding Weapon Plasma Cannon Energy Gun Gatling Laser Energy Cannon Plasma Cannon Ballistic Gun Assault Rifle Ballistic Cannon Heavy Flak Cannon Special Weapon Mining Laser Build | -11 -10 -9 -9 -9 -7 -6 -5 ------- Run | Yrd Mat Mat Sto Rec Fac Fac Fac Slots Evolved 10 | . . 2 . . 4 2 2 Power 1 | . . . . . . . 1 Propulsion 2 | . . 1 . . . . 1 Utility 6 | . . 1 . . 3 2 . Weapon 1 | . . . . . 1 . . Parts Attached 55 | 6 6 6 7 . 13 4 13 Power 6 | 1 . 1 . . 1 . 3 Engine 6 | 1 . 1 . . 1 . 3 Core . | . . . . . . . . Reactor . | . . . . . . . . Propulsion 18 | 2 2 3 4 . 3 . 4 Treads 16 | . 2 3 4 . 3 . 4 Leg 2 | 2 . . . . . . . Wheel . | . . . . . . . . Hover . | . . . . . . . . Flight . | . . . . . . . . Utility 17 | 1 2 1 1 . 4 3 5 Device 11 | . 1 1 . . 2 3 4 Storage 2 | 1 1 . . . . . . Processor . | . . . . . . . . Hackware 1 | . . . . . . . 1 Protection 3 | . . . 1 . 2 . . Artifact . | . . . . . . . . Weapon 14 | 2 2 1 2 . 5 1 1 Energy Gun 5 | 1 1 1 . . 1 . 1 Energy Cannon 1 | . . . . . 1 . . Ballistic Gun 5 | 1 . . 2 . 2 . . Ballistic Cannon 2 | . . . . . 1 1 . Launcher . | . . . . . . . . Special Weapon 1 | . 1 . . . . . . Impact Weapon . | . . . . . . . . Slashing Weapon . | . . . . . . . . Piercing Weapon . | . . . . . . . . Special Melee Weapon . | . . . . . . . . Unidentified Prototypes 1 | . . . . . 1 . . Parts Lost 30 | . . 1 2 . 1 5 21 Power 5 | . . . . . 1 1 3 Propulsion 7 | . . . . . . 1 6 Utility 10 | . . . 1 . . 2 7 Weapon 8 | . . 1 1 . . 1 5 Highest Loss Streak 16 | . . 1 1 . 1 4 16 To Critical Strikes . | . . . . . . . . Average Backups 11 | 3 6 9 14 14 13 13 10 Power 2 | . 1 2 3 3 3 3 1 Propulsion 3 | 1 1 2 5 6 4 4 1 Utility 1 | . . 1 1 2 1 2 1 Weapon 3 | . 2 3 3 3 3 4 5 Tool/Special . | . . . . . . . . Unused Backups 13 | . . . . . 5 . 8 Power 4 | . . . . . 2 . 2 Propulsion 3 | . . . . . 3 . . Utility 1 | . . . . . . . 1 Weapon 5 | . . . . . . . 5 Tool/Special . | . . . . . . . . Average Slot Usage (%) 93 | . 94 93 100 100 95 86 87 Engine 8 | . 14 11 11 11 6 6 9 Treads 24 | . 9 33 33 33 23 20 20 Leg 1 | . 18 . . . . . . Device 16 | . 9 17 17 11 13 15 26 Storage 8 | . 14 11 11 11 7 6 5 Protection 10 | . . . 4 11 19 18 3 Energy Gun 6 | . 14 11 9 . 7 2 1 Energy Cannon 3 | . . . . . 5 6 3 Ballistic Gun 7 | . 11 8 8 22 5 3 4 Ballistic Cannon 2 | . . . . . 3 6 4 Peak Build Rating 63 | 6 10 14 17 17 45 52 63 Average Rating 31 | 4 8 12 14 17 35 45 53 On Entrance 18 | . 6 10 14 17 17 45 37 Avg Prop Armor Cover (%) . | . . . . . . . . Naked Turns . | . . . . . . . . Heaviest Build 64 | 13 31 34 34 34 60 64 64 Greatest Support 103 | 20 40 60 69 69 76 85 103 Greatest Overweight (x) 6 | 3 . . . . . . 6 Average Overweight (x) . | . . . . . . . . Largest Inventory Capacity 15 | 8 15 15 15 15 15 15 15 Average Capacity 14 | 7 10 15 15 15 15 15 14 Most Carried 15 | 5 8 13 15 14 15 15 14 Average Carried 12 | 3 6 9 14 14 13 14 11 Final Capacity 15 | 8 15 15 15 15 15 15 5 Final Carried 15 | 5 8 13 14 14 15 14 5 Class Distribution -------------------- 29% | Scavenger-Tank 22% | Mutant 17% | Tank 15% | Scavenger-Mutant 10% | Gunner 3% | Scavenger-Gunner Dominant Class ---------------- Mutant | -10/Materials Scavenger-Mutant | -9/Materials Scavenger-Mutant | -9/Storage Mutant | -9/Recycling Scavenger-Tank | -7/Factory Tank | -6/Factory Gunner | -5/Factory Resources | -11 -10 -9 -9 -9 -7 -6 -5 ----------- Run | Yrd Mat Mat Sto Rec Fac Fac Fac Matter Collected 1285 | 287 99 100 120 . 338 136 205 Remotely 83 | . . 68 15 . . . . Salvage Created 2002 | 155 132 389 258 . 509 220 339 Parts 114 | 17 11 27 19 . 24 9 7 Haulers Intercepted 2 | . 1 . 1 . . . . Recyclers Shooed 4 | . . 1 . . . 3 . Parts Field Recycled . | . . . . . . . . Retrieved Matter . | . . . . . . . . Parts Self-Destructed . | . . . . . . . . Prevented . | . . . . . . . . Parts Restored . | . . . . . . . . Kills | -11 -10 -9 -9 -9 -7 -6 -5 ------- Run | Yrd Mat Mat Sto Rec Fac Fac Fac Combat Hostiles Destroyed 35 | . 2 6 3 . 13 3 8 Guns 20 | . 2 5 3 . 7 1 2 Cannons 12 | . . . . . 6 2 4 AOE 2 | . . . . . . . 2 Classes Destroyed 12 | 3 2 2 2 . 2 1 . Worker 4 | 2 . 1 . . . 1 . Builder 2 | . . . 1 . . . 1 Tunneler 5 | 4 . . . . . . 1 Hauler 2 | . 1 . 1 . . . . Recycler 3 | 1 . 1 . . . 1 . Operator 1 | . . . 1 . . . . Watcher 3 | . . 1 1 . 1 . . Swarmer 3 | . . . . . 3 . . Grunt 13 | . 2 1 2 . 4 . 4 Sentry 11 | . . 5 1 . 3 . 2 Hunter 3 | . . . . . . 3 . Programmer 5 | . . . . . 3 . 2 Best Kill Streak 7 | 7 2 4 2 . 3 5 3 Combat Bots Only 3 | . 2 3 2 . 3 3 3 Max Kills in Single Turn 3 | 1 1 1 2 . 2 1 3 Gunslinging . | . . . . . . . . Exploded 2 | . . . . . . . 2 Melee . | . . . . . . . . Uniques/NPCs Destroyed . | . . . . . . . . Combat | -11 -10 -9 -9 -9 -7 -6 -5 -------- Run | Yrd Mat Mat Sto Rec Fac Fac Fac Hostile Shots Fired 573 | . 13 39 42 . 100 167 212 Missed 191 | . 4 13 17 . 28 58 71 Hits 382 | . 9 26 25 . 72 109 141 Projectile 382 | . 9 26 25 . 72 109 141 Critical Strikes 9 | . . . 1 . 1 2 5 Part Disruptions 2 | . . . . . 1 . 1 Actively Blocked 1 | . . . . . 1 . . Damage Taken 5828 | . 112 427 384 . 792 1151 2962 Core 1250 | . 28 78 24 . 72 46 1002 Absorbed by Shields 19 | . . . . . . . 19 Redirected to Shielding 53 | . . . 4 . 16 20 13 Regen/Repaired (Parts) 238 | . . . . . . . 238 Core Remaining (%) 89 | 100 88 . . 74 89 94 . Volleys Fired 143 | 9 12 25 22 . 31 11 33 Largest 3 | 2 2 2 2 . 3 3 3 Hottest 200 | 60 100 105 105 . 200 152 152 Shots Fired 340 | 18 23 42 41 . 89 32 95 Gun 226 | 18 22 42 39 . 42 10 53 Cannon 109 | . . . . . 45 22 42 Launcher . | . . . . . . . . Special 5 | . 1 . 2 . 2 . . Kinetic 174 | 9 11 13 27 . 31 21 62 Thermal 129 | 9 12 25 3 . 58 11 11 Explosive . | . . . . . . . . Electromagnetic 37 | . . 4 11 . . . 22 Robot Hit Streak 25 | 3 5 15 14 . 25 7 18 Robot Miss Streak 6 | 2 2 1 3 . 6 4 5 Penetration Max 1 | . . . . . . . 1 Secondary Targets . | . . . . . . . . Shots Hit Robots 258 | 9 14 34 28 . 69 26 78 Core Hits 157 | 8 6 13 11 . 38 38 43 Critical Kills . | . . . . . . . . Critical Parts Destroyed . | . . . . . . . . Critical Strikes 2 | . . 2 . . . . . Burn 2 | . . 2 . . . . . Melee Attacks . | . . . . . . . . Impact . | . . . . . . . . Slashing . | . . . . . . . . Piercing . | . . . . . . . . Sneak Attacks . | . . . . . . . . Combat Hostiles . | . . . . . . . . Follow-up Attacks . | . . . . . . . . Damage Inflicted 5500 | 105 169 504 433 . 1704 617 1968 Guns 2776 | 105 169 504 369 . 781 163 685 Cannons 2367 | . . . . . 910 420 1037 Explosions 293 | . . . 64 . . . 229 Melee . | . . . . . . . . Ramming 64 | . . . . . 13 34 17 Kinetic 2841 | 49 77 102 281 . 515 355 1462 Thermal 2195 | 56 92 369 64 . 1176 228 210 Explosive 229 | . . . . . . . 229 Electromagnetic 171 | . . 33 88 . . . 50 Impact . | . . . . . . . . Slashing . | . . . . . . . . Piercing . | . . . . . . . . Highest Corruption 9 | . . . 2 2 2 . 9 Average Corruption 2 | . . . 2 2 1 . 5 Corruption Purged 4 | . . . . . . . 4 Corruption Blocked . | . . . . . . . . Effects 19 | . . . 4 5 4 . 6 Message Errors 3 | . . . 2 . . . 1 Matter Fused 5 | . . . 1 1 1 . 2 Heat Flow Errors 3 | . . . . 2 . . 1 Energy Discharges 1 | . . . . . 1 . . Data Loss (minor) 6 | . . . 1 1 2 . 2 Data Loss (major) 1 | . . . . 1 . . . Overload Shots . | . . . . . . . . Overflow Damage 40 | . . . 10 . 16 5 9 Projectiles 30 | . . . . . 16 5 9 Explosions 10 | . . . 10 . . . . Melee . | . . . . . . . . Knockbacks 39 | . . . . . 2 9 28 Impact . | . . . . . . . . Kinetic 34 | . . . . . 2 7 25 Secondary 5 | . . . . . . 2 3 Self-Inflicted Damage 142 | . . . 30 . . . 112 Shots 2 | . . . 1 . . . 1 Rammed 12 | . . . . . 3 7 2 Targets Rammed 13 | . . . . . 3 7 3 Kicked . | . . . . . . . . Crushed 1 | . . . . . . . 1 Highest Temperature 265 | 20 42 7 . 265 221 12 . Average Temperature 58 | 15 26 4 . 128 73 4 . Received Heat Transfer 1167 | . 60 90 177 . 201 108 531 Siege Activations . | . . . . . . . . Martial Activations . | . . . . . . . . Shielding Activations . | . . . . . . . . Robots Disrupted . | . . . . . . . . Combat Hostiles . | . . . . . . . . Robots Corrupted . | . . . . . . . . Combat Hostiles . | . . . . . . . . Parts Fried . | . . . . . . . . Impact Corruptions . | . . . . . . . . Robots Melted 1 | . . 1 . . . . . Combat Hostiles 1 | . . 1 . . . . . Parts Melted 14 | 1 . 6 . . 6 1 . Heat Transferred 4660 | 125 212 999 100 . 2374 450 400 Parts Sabotaged . | . . . . . . . . Parts Stolen . | . . . . . . . . Parts Stripped . | . . . . . . . . Power Chain Reactions 1 | . . . 1 . . . . Alert | -11 -10 -9 -9 -9 -7 -6 -5 ------- Run | Yrd Mat Mat Sto Rec Fac Fac Fac Maximum Alert Level 1 | . . . . . 1 . . Low Security (%) 99 | 100 100 100 100 100 98 100 100 Level 1 . | . . . . . 1 . . Level 2 . | . . . . . . . . Level 3 . | . . . . . . . . Level 4 . | . . . . . . . . Level 5 . | . . . . . . . . High Security . | . . . . . . . . Max Security . | . . . . . . . . Peak Influence 204 | 10 40 108 60 30 204 80 179 Initial 204 | . . . 40 15 204 . . Average 48 | 3 15 56 17 12 61 32 80 Influence Increases 1729 | 35 72 198 151 95 593 135 450 Destroy 0b10 Robot/C 700 | . 40 120 60 . 260 60 160 Destroy 0b10 Robot/NC 100 | 35 5 15 20 . 5 10 10 Destroy Leader 260 | . 12 62 24 . 92 20 50 Successful Hack 179 | . 14 . 24 5 16 . 120 Select Force Hacks 140 | . . . . 90 . 30 20 Disable Machine 60 | . . . 15 . . 15 30 Destroy Structure 45 | . 1 1 8 . 5 . 30 Advance Influence 200 | . . . . . 200 . . Lose Combat Pursuer 45 | . . . . . 15 . 30 Influence Decreases 1729 | 35 70 102 209 125 603 135 450 Entered New Map 91 | . . 2 58 25 6 . . Time Decay 1093 | 35 70 90 133 100 320 105 240 Lost Part 278 | . . 10 18 . 10 30 210 Purge Threat 267 | . . . . . 267 . . Squads Dispatched 17 | . . 1 . . 9 2 5 Investigation 10 | . . 1 . . 6 2 1 Extermination 4 | . . . . . 3 . 1 Reinforcement 1 | . . . . . . . 1 Assault . | . . . . . . . . Garrison 2 | . . . . . . . 2 Intercept . | . . . . . . . . Searches Triggered . | . . . . . . . . Construction Impeded . | . . . . . . . . Haulers Reinforced . | . . . . . . . . Active Scanning Responses . | . . . . . . . . Cargo Convoy Interrupts . | . . . . . . . . Stealth | -11 -10 -9 -9 -9 -7 -6 -5 --------- Run | Yrd Mat Mat Sto Rec Fac Fac Fac Distress Signals 6 | . 1 . 1 . 1 3 . Communications Jammed . | . . . . . . . . Distress Signals . | . . . . . . . . Times Spotted 61 | . 4 7 6 . 18 9 17 Peak Tracking Total 6 | . 3 3 2 . 3 5 6 Tactical Retreats 3 | . . . . . 1 . 2 Traps | -11 -10 -9 -9 -9 -7 -6 -5 ------- Run | Yrd Mat Mat Sto Rec Fac Fac Fac Traps Triggered 5 | . . 1 1 . 1 . 2 Indirectly . | . . . . . . . . Trap Hack Attempts . | . . . . . . . . Triggered . | . . . . . . . . Disarmed . | . . . . . . . . Reprogrammed . | . . . . . . . . Reused . | . . . . . . . . Traps Extracted . | . . . . . . . . Installed . | . . . . . . . . Triggered . | . . . . . . . . Machines | -11 -10 -9 -9 -9 -7 -6 -5 ---------- Run | Yrd Mat Mat Sto Rec Fac Fac Fac Machines Disabled 4 | . . . 1 . . 1 2 Max in Single Turn 2 | . . . 1 . . 1 2 Machines Repaired . | . . . . . . . . Machines Dismantled . | . . . . . . . . Machines Sabotaged . | . . . . . . . . Overloaded Fab Kills . | . . . . . . . . Hacking | -11 -10 -9 -9 -9 -7 -6 -5 --------- Run | Yrd Mat Mat Sto Rec Fac Fac Fac Machines Accessed 32 | . 2 2 4 6 9 2 7 Terminals 23 | . 2 2 4 3 7 1 4 Fabricators 2 | . . . . . 1 . 1 Repair Stations 1 | . . . . . . . 1 Recycling Units 4 | . . . . 3 . 1 . Scanalyzers 2 | . . . . . 1 . 1 Garrison Access . | . . . . . . . . Total Hacks 80 | . 3 10 8 11 27 2 19 Successful 31 | . 1 2 5 5 7 1 10 Failed 49 | . 2 8 3 6 20 1 9 Catastrophic 10 | . 1 . 1 . 5 1 2 Database Lockouts . | . . . . . . . . Manual 42 | . 1 10 3 11 10 1 6 Terminals 58 | . 3 10 8 6 20 1 10 Fabricators 6 | . . . . . 4 . 2 Repair Stations 3 | . . . . . . . 3 Recycling Units 6 | . . . . 5 . 1 . Scanalyzers 7 | . . . . . 3 . 4 Garrison Access . | . . . . . . . . Terminal Hacks 14 | . 1 1 4 1 5 . 2 Record 2 | . . . . . . . 2 Open Door 2 | . . . 2 . . . . Branch Access Points 1 | . . . 1 . . . . Terminal Index 3 | . . 1 1 . 1 . . Unreport Threat 2 | . . . . . 2 . . Locate Traps 1 | . 1 . . . . . . Zone Layout 3 | . . . . 1 2 . . Fabricator Hacks 2 | . . . . . 1 . 1 Network Status 2 | . . . . . 1 . 1 Repair Station Hacks 2 | . . . . . . . 2 Scan Component 1 | . . . . . . . 1 Repair 1 | . . . . . . . 1 Recycling Unit Hacks . | . . . . . . . . Scanalyzer 3 | . . . . . 1 . 2 Insert Component 1 | . . . . . . . 1 Analyze 1 | . . . . . . . 1 Retrieve Study 1 | . . . . . 1 . . Garrison Access Hacks . | . . . . . . . . Unauthorized Hacks 10 | . . 1 1 4 . 1 3 Terminals 4 | . . 1 1 . . . 2 Botnet 4 | . . 1 1 . . . 2 Fabricators 1 | . . . . . . . 1 Download 1 | . . . . . . . 1 Repair Stations . | . . . . . . . . Recycling Units 5 | . . . . 4 . 1 . Recyclers 1 | . . . . 1 . . . Tunnel 4 | . . . . 3 . 1 . Scanalyzers . | . . . . . . . . Garrison Access . | . . . . . . . . Data Cores Recovered 1 | . . . 1 . . . . Used 1 | . . . 1 . . . . Hacking Detections 26 | . 2 2 4 3 9 1 5 Full Trace Events 9 | . . 2 . 1 6 . . Feedback Events . | . . . . . . . . Feedback Blocked . | . . . . . . . . Robot Schematics Acquired . | . . . . . . . . Robots Built . | . . . . . . . . Authchips . | . . . . . . . . Time . | . . . . . . . . Total Robot Build Rating . | . . . . . . . . Part Schematics Acquired 1 | . . . . . . . 1 Parts Built . | . . . . . . . . Authchips . | . . . . . . . . Time . | . . . . . . . . Total Part Build Rating . | . . . . . . . . Part Studies Acquired 1 | . . . . . 1 . . Parts Repaired 1 | . . . . . . . 1 Time 19 | . . . . . . . 19 Parts Recycled . | . . . . . . . . Recycled Matter . | . . . . . . . . Retrieved Matter . | . . . . . . . . Retrieved Components . | . . . . . . . . Parts Scanalyzed 1 | . . . . . . . 1 Part Schematics Acquired 1 | . . . . . . . 1 Parts Damaged . | . . . . . . . . Bothacking | -11 -10 -9 -9 -9 -7 -6 -5 ------------ Run | Yrd Mat Mat Sto Rec Fac Fac Fac Used RIF Installer . | . . . . . . . . Robots Hacked . | . . . . . . . . Non-combat . | . . . . . . . . Combat . | . . . . . . . . Robot Hacks Applied . | . . . . . . . . Relay Couplers Released . | . . . . . . . . Fabnet Peak Effective % . | . . . . . . . . Robots Rewired . | . . . . . . . . Allies Hacked . | . . . . . . . . Hacks Repelled . | . . . . . . . . Allies | -11 -10 -9 -9 -9 -7 -6 -5 -------- Run | Yrd Mat Mat Sto Rec Fac Fac Fac Total Allies . | . . . . . . . . Largest Group . | . . . . . . . . Highest-Rated Group . | . . . . . . . . Highest-Rated Ally . | . . . . . . . . Total Orders . | . . . . . . . . Ally Attacks . | . . . . . . . . Total Damage . | . . . . . . . . Kills . | . . . . . . . . Allies Corrupted . | . . . . . . . . Allies Melted . | . . . . . . . . Intel | -11 -10 -9 -9 -9 -7 -6 -5 ------- Run | Yrd Mat Mat Sto Rec Fac Fac Fac Active Infowar (turns) . | . . . . . . . . Robot Analysis Total . | . . . . . . . . Derelict Logs Recovered . | . . . . . . . . Drone Launches . | . . . . . . . . Drone Recoveries . | . . . . . . . . Exploration | -11 -10 -9 -9 -9 -7 -6 -5 ------------- Run | Yrd Mat Mat Sto Rec Fac Fac Fac Turns Passed 3316 | 120 189 247 395 263 1208 273 621 Spaces Moved 1669 | 62 100 101 194 165 636 134 277 Core 41 | 12 . . . . . . 29 Treads 1512 | . 34 101 194 165 636 134 248 Legs 116 | 50 66 . . . . . . Wheels . | . . . . . . . . Hover . | . . . . . . . . Flight . | . . . . . . . . Fastest Speed 50 | 50 120 160 160 160 160 163 50 Average Speed 158 | 129 133 160 160 160 162 163 158 Slowest Speed 350 | 200 160 160 160 160 163 165 350 Overloaded Moves . | . . . . . . . . Propulsion Burnouts . | . . . . . . . . Robots Hopped . | . . . . . . . . Potential Cave-ins . | . . . . . . . . Cave-ins Triggered . | . . . . . . . . Exploration Rate (%) 21 | 4 32 11 35 45 25 7 9 Regions Visited 7 Branch Regions 2 Pre-discovered Areas 4 | . . . . 3 . 1 . Known Exits Taken 1 | . . . 1 . . . . Unknown Exits Taken 6 | 1 1 1 . 1 1 1 . Scrap Searched . | . . . . . . . . Spaces Dug 1 | . 1 . . . . . . Terrain Destroyed 29 | . 1 . 6 . 3 . 19 Melee . | . . . . . . . . Projectile 4 | . 1 . . . 3 . . AOE 25 | . . . 6 . . . 19 Terrain Rammed . | . . . . . . . . Walls Destroyed . | . . . . . . . . Machines Disabled . | . . . . . . . . Actions | -11 -10 -9 -9 -9 -7 -6 -5 --------- Run | Yrd Mat Mat Sto Rec Fac Fac Fac Total 2054 | 81 129 143 234 164 740 160 403 Wait 108 | . 3 8 4 . 25 1 67 Move 1662 | 61 99 100 193 164 635 133 277 Hop . | . . . . . . . . Pick Up 32 | 5 5 4 3 . 11 . 4 Fast Attach 22 | 6 1 1 . . 5 3 6 Attach 17 | . . 2 2 . 3 1 9 Detach . | . . . . . . . . Swap 24 | . 6 3 6 . 8 1 . Drop 31 | . 3 . 4 . 18 3 3 Fire 143 | 9 12 25 22 . 31 11 33 Melee . | . . . . . . . . Ram . | . . . . . . . . Kick . | . . . . . . . . Crush 13 | . . . . . 3 7 3 Escape Stasis 1 | . . . . . . . 1 Rewire 1 | . . . . . 1 . . Trap . | . . . . . . . . Miscellaneous . | . . . . . . . . Route ------- -11/Scrapyard -10/Materials -9/Materials -9/Storage -9/Recycling -7/Factory -6/Factory -5/Factory History --------- Turn | Location | Event 22 | -11/Scrapyard | Discovered new exit (range 15) 121 | -11/Scrapyard | Entered Materials 302 | -10/Materials | Discovered new exit (range 6) 306 | -10/Materials | Build established: Mutant 310 | -10/Materials | Entered another Materials area 310 | -9/Materials | Evolved 2 slots: Propulsion x1, Utility x1 497 | -9/Materials | Discovered new exit (range 10) 557 | -9/Materials | Entered Storage 672 | -9/Storage | Identified exit to Recycling 729 | -9/Storage | Build established: Scavenger-Mutant 945 | -9/Storage | Used back door to open Recycling access 952 | -9/Storage | Entered Recycling 1194 | -9/Recycling | Discovered new exit (range 14) 1215 | -9/Recycling | Entered Factory 1215 | -7/Factory | Evolved 4 slots: Utility x3, Weapon x1 1503 | -7/Factory | Build established: Scavenger-Tank 2415 | -7/Factory | Discovered new exit (range 5) 2423 | -7/Factory | Entered another Factory area 2423 | -6/Factory | Evolved 2 slots: Utility x2 2513 | -6/Factory | Build established: Tank 2621 | -6/Factory | Spotted B-75 Beast 2665 | -6/Factory | Discovered new exit (range 16) 2696 | -6/Factory | Entered another Factory area 2696 | -5/Factory | Evolved 2 slots: Power x1, Propulsion x1 2727 | -5/Factory | Lost 4 parts (1p1n2u) 2809 | -5/Factory | Repaired Arm. Treads 3144 | -5/Factory | Garrison activated, responded to threat 3286 | -5/Factory | Core integrity fell below 50% 3311 | -5/Factory | Core integrity fell below 20% 3317 | -5/Factory | Destroyed by X-77 Beamer with Gatling Laser Last Messages --------------- 03276_ Imp. Treads+ destroyed. 03278_ System Restoration Module destroyed. 03278_ K-01 Serf destroyed. 03279_ System corrupted: Heat flow error (+137). 03279_ Penetrated by Slug. 03279_ Med. Treads destroyed. 03281_ Adv. Heat Sink destroyed. 03282_ Triggered Stasis Trap. 03282_ A bubble of rippling energy engulfs the area. 03282_ Field strength at 94. 03283_ Field strength at 88. 03283_ Knocked back. 03286_ P-70 Sage resets H-71 Marshal, system corruption cleaned. 03294_ System corrupted: Matter fused (-8). 03303_ Adv. Weight Redist. System destroyed. 03310_ Imp. Cryofiber Web destroyed. 03311_ Dropped Lrg. Storage Unit. 03316_ U-05 Engineer destroyed. Map ----- +----------------------------------------------------+ | ?????????????????????????????????????????????????? | | ?????????????????????????????????????????????????? | | ?????????????????????????????????????????????????? | | ?????????????????????????????????????????????????? | | ?????????????????????????????????????????????????? | | ?????????????????????????????????????????????????? | | ?????????????????????????????????????????????????? | | ?????????????????????????????????????????????????? | | ?????????????????????????????????????????????????? | | ?????????????????????????????????????????????????? | | ?????????????????????????????????????????????????? | | ?????????????????????????????????????????????+???? | | ???????????????????????????????????????????? #?? | | ???????????????????????????????????????????? #?? | | ???????????????????????????????????????????? #?? | | ???????????????????????????????????????????# #?? | | ???????????????????????????????????????????# #?? | | ???????????????????????????????????????????# #?? | | ??????????????????##########???????????????# #?? | | ??????????????????? #???????????????+ #?? | | ???????????????????? +???????????????# #?? | | ?????????????????????? m #?????????????### ### | | ???????????????????????# #?????????????# # | | ???????????????????????# ############### H # | | ???????????????????????# ! x ! # | | ???????????????????????+ @ [!%! p + | | ???????????????????????# ]!*= x # | | ???????????????????????## ###+############ # | | ????????????????????????# # #????# # | | ????????????????????????# # ] #????## % ## | | ????????????????????????# # #?????# #? | | ????????????????????????# # ! #?????# #? | | ???????????????????????? # * #?????# %% #? | | ????????????????????????# # #?????# ^ #? | | ?????????????????????????A# #?????# ## | | ????????????????????????? # #?????# # | | ????????????????????????? ###########?????# # | | ????????????????????????? ?????????######## " | | ????????????????????????? ?????? %% #] | | ????????????????????????? ?????? + | | ????????????????????????? ?????? % # | | ???????????????????????????????? ! # | | ????????????????????????????????? % # | | ?????????????????????????????????######+###### ## | | ?????????????????????????????????????????????#%##+ | | ?????????????????????????????????????????????#% | | ?????????????????????????????????????????????# | | ?????????????????????????????????????????????# | | ?????????????????????????????????????????????# | | ?????????????????????????????????????????????# | +----------------------------------------------------+ Best States ------------- Heat Dissipation 106 Energy Generation 25 Energy Capacity 465 Matter Stores 300 Matter Capacity 300 Sight Range 16 Terrain Scan Density 10 Additional Mass Support 9 Base Temperature (-) 150 Armor Coverage 375 Utility Shielding 33 Weapon Cycling 20 Evasion (%) 55 Recoil Reduction 8 Defensive Hacking 10 Item Schematics ----------------- Med. Treads | -5/Factory | Scanalyzed Robot Schematics ------------------ None Fabricated ------------ Nothing Repaired ---------- Arm. Treads | 20% | -5/Factory Studied --------- Imp. Treads | -7/Factory | Hacked Alien Tech Used ----------------- None Achievements -------------- None Challenges ------------ None Game ------ Seed GuidanceNeutronRailcannon Manual? 0 Play Time 00:36:05 Cumulative 74.8 hours Start 2025.11.14 @ 17:46:48 End 2025.11.14 @ 18:21:39 Sessions 1 Manual Loads 0 Difficulty Rogue Special Mode None Game No. 99 Rogue 99 Adventurer 0 Explorer 0 Win Type - Total 1 Types 1/0/0/0/0/0/0/0/0/0 Lore% 46 Gallery% 47 Achievement% 35 Wizard Run 0 Options --------- Layout 2 ASCII 0 Keyboard 0 Movement Mouse Keybinds 0 Fullscreen 1 Font 24/Smallcaps Map View 50x44 Zoom Use 0% Tactical HUD 1 Map Filters NONE Filters NONE Steam 1 RUN: f7687128-e1ad-4f41-b6e7-d5e1b6fd3941